Cogmind - Beta 13 @@@ ROGUE MODE // 2024.04.27 @ 16:58:18 Player: Cwaftwer Result: Destroyed by as-57648 with Assembled Rifle Performance ------------- Evolutions (0) 0 Regions Visited (4) 800 Robots Destroyed (4) 20 Value Destroyed (95) 95 Prototype IDs (23) 460 Alien Tech Used (0) 0 Bonus (300) 300 TOTAL SCORE: 1675 Bonus ------- Aligned with FarCom 300 Cogmind --------- Core Integrity 0/250 Matter 300/300 Energy 99/100 System Corruption 1% Temperature Cool (0) Movement Core (50) Location -9/Mines Parts ------- > --- POWER (1) -------- (None) > --- PROPULSION (2) --- (None) > --- UTILITY (2) ------ Signal Interpreter > --- WEAPON (2) ------- (None) > --- INVENTORY (5) ---- Signal Interpreter Improved Terrain Scanner Seismic Detector 0b10 Alert Chip Core Shielding Peak State ------------ > --- POWER ------------ (None) > --- PROPULSION ------- (None) > --- UTILITY ---------- Signal Interpreter Improved Terrain Scanner > --- WEAPON ----------- Small Laser Assault Rifle > --- INVENTORY -------- Signal Interpreter Seismic Detector 0b10 Alert Chip Core Shielding Core Shielding [Rating: 7] Favorites ----------- Power Ion Engine Engine Ion Engine Propulsion None Utility Improved Terrain Scanner Device Improved Terrain Scanner Processor Signal Interpreter Protection Core Shielding Weapon Small Laser Energy Gun Small Laser Ballistic Gun Assault Rifle Build | -11 -10 -10 -10 -9 ------- Run | Yrd Mat Min Exi Min Slots Evolved . | . . . . . Power . | . . . . . Propulsion . | . . . . . Utility . | . . . . . Weapon . | . . . . . Parts Attached 8 | 4 1 . 2 1 Power 1 | 1 . . . . Engine 1 | 1 . . . . Core . | . . . . . Reactor . | . . . . . Propulsion . | . . . . . Treads . | . . . . . Leg . | . . . . . Wheel . | . . . . . Hover . | . . . . . Flight . | . . . . . Utility 3 | 1 1 . . 1 Device 1 | 1 . . . . Storage . | . . . . . Processor 1 | . 1 . . . Hackware . | . . . . . Protection 1 | . . . . 1 Artifact . | . . . . . Weapon 4 | 2 . . 2 . Energy Gun 3 | 2 . . 1 . Energy Cannon . | . . . . . Ballistic Gun 1 | . . . 1 . Ballistic Cannon . | . . . . . Launcher . | . . . . . Special Weapon . | . . . . . Impact Weapon . | . . . . . Slashing Weapon . | . . . . . Piercing Weapon . | . . . . . Special Melee Weapon . | . . . . . Unidentified Prototypes . | . . . . . Parts Lost 2 | . . . . 2 Power . | . . . . . Propulsion . | . . . . . Utility 1 | . . . . 1 Weapon 1 | . . . . 1 Highest Loss Streak 2 | . . . . 2 To Critical Strikes . | . . . . . Average Slot Usage (%) 53 | . 56 57 48 42 Device 13 | . 14 14 14 12 Processor 13 | . 13 14 14 14 Energy Gun 21 | . 28 28 12 . Ballistic Gun 3 | . . . 7 14 Naked Turns . | . . . . . Heaviest Build 3 | 3 3 3 3 3 Greatest Support 3 | 3 3 3 3 3 Greatest Overweight (x) . | . . . . . Average Overweight (x) . | . . . . . Largest Inventory Capacity 5 | 5 5 5 5 5 Average Capacity 5 | 5 5 5 5 5 Most Carried 5 | 3 5 5 5 5 Average Carried 4 | 1 4 5 4 5 Final Capacity 5 | 5 5 5 5 5 Final Carried 5 | 2 5 5 5 5 Class Distribution -------------------- 93% | Mutant 6% | Scout Dominant Class ---------------- Mutant | -10/Materials Mutant | -10/Mines Mutant | -10/Exiles Scout | -9/Mines Resources | -11 -10 -10 -10 -9 ----------- Run | Yrd Mat Min Exi Min Matter Collected 250 | 240 10 . . . Remotely . | . . . . . Salvage Created 141 | 38 . 103 . . Parts 5 | 3 . 2 . . Haulers Intercepted . | . . . . . Recyclers Shooed . | . . . . . Parts Field Recycled . | . . . . . Retrieved Matter . | . . . . . Parts Self-Destructed . | . . . . . Prevented . | . . . . . Kills | -11 -10 -10 -10 -9 ------- Run | Yrd Mat Min Exi Min Combat Hostiles Destroyed 2 | . . 2 . . Guns 2 | . . 2 . . Classes Destroyed 2 | 1 . 1 . . Tunneler 2 | 2 . . . . Grunt 2 | . . 2 . . Best Kill Streak 2 | 2 . 2 . . Combat Bots Only 2 | . . 2 . . Max Kills in Single Turn 1 | 1 . 1 . . Gunslinging . | . . . . . Exploded . | . . . . . Melee . | . . . . . Uniques/NPCs Destroyed . | . . . . . Combat | -11 -10 -10 -10 -9 -------- Run | Yrd Mat Min Exi Min Hostile Shots Fired 43 | . . 14 . 29 Missed 9 | . . 4 . 5 Damage Taken 513 | . . 123 . 390 Core 255 | . . 26 . 229 Absorbed by Shields . | . . . . . Redirected to Shielding 49 | . . . . 49 Core Remaining (%) 100 | 100 . . . . Volleys Fired 14 | 7 . 7 . . Largest 2 | 2 . 2 . . Hottest 80 | 80 . 80 . . Shots Fired 28 | 14 . 14 . . Gun 28 | 14 . 14 . . Cannon . | . . . . . Launcher . | . . . . . Special . | . . . . . Kinetic . | . . . . . Thermal 28 | 14 . 14 . . Explosive . | . . . . . Electromagnetic . | . . . . . Robot Hit Streak 6 | 5 . 6 . . Robot Miss Streak 2 | 2 . 2 . . Penetration Max . | . . . . . Secondary Targets . | . . . . . Shots Hit Robots 21 | 10 . 11 . . Core Hits 9 | 2 . 5 . 2 Critical Kills . | . . . . . Critical Parts Destroyed . | . . . . . Critical Strikes . | . . . . . Melee Attacks . | . . . . . Impact . | . . . . . Slashing . | . . . . . Piercing . | . . . . . Sneak Attacks . | . . . . . Combat Hostiles . | . . . . . Follow-up Attacks . | . . . . . Damage Inflicted 257 | 110 . 116 . 31 Guns 226 | 110 . 116 . . Cannons . | . . . . . Explosions . | . . . . . Melee . | . . . . . Ramming 31 | . . . . 31 Kinetic . | . . . . . Thermal 226 | 110 . 116 . . Explosive . | . . . . . Electromagnetic . | . . . . . Impact . | . . . . . Slashing . | . . . . . Piercing . | . . . . . Highest Corruption 1 | . . . . 1 Average Corruption 1 | . . . . 1 Corruption Purged . | . . . . . Corruption Blocked . | . . . . . Overload Shots . | . . . . . Overflow Damage . | . . . . . Projectiles . | . . . . . Explosions . | . . . . . Melee . | . . . . . Knockbacks . | . . . . . Impact . | . . . . . Kinetic . | . . . . . Secondary . | . . . . . Self-Inflicted Damage 14 | . . . . 14 Shots . | . . . . . Rammed 11 | . . . . 11 Targets Rammed 11 | . . . . 11 Kicked . | . . . . . Crushed . | . . . . . Highest Temperature 93 | 9 . 93 . . Average Temperature 30 | 3 . 54 . . Received Heat Transfer 132 | . . 72 . 60 Siege Activations . | . . . . . Robots Corrupted . | . . . . . Combat Hostiles . | . . . . . Parts Fried . | . . . . . Impact Corruptions . | . . . . . Robots Melted . | . . . . . Combat Hostiles . | . . . . . Parts Melted 2 | . . 2 . . Heat Transferred 525 | 250 . 275 . . Parts Sabotaged . | . . . . . Parts Stolen . | . . . . . Parts Stripped . | . . . . . Power Chain Reactions . | . . . . . Alert | -11 -10 -10 -10 -9 ------- Run | Yrd Mat Min Exi Min Peak Influence 55 | 10 51 55 . . Initial 6 | . 6 5 . . Average 32 | 1 41 42 . . Maximum Alert Level . | . . . . . Low Security (%) 100 | 100 100 100 . 100 Level 1 . | . . . . . Level 2 . | . . . . . Level 3 . | . . . . . Level 4 . | . . . . . Level 5 . | . . . . . High Security . | . . . . . Max Security . | . . . . . Squads Dispatched . | . . . . . Investigation . | . . . . . Extermination . | . . . . . Reinforcement . | . . . . . Assault . | . . . . . Garrison . | . . . . . Intercept . | . . . . . Searches Triggered . | . . . . . Construction Impeded . | . . . . . Haulers Reinforced . | . . . . . Active Scanning Responses . | . . . . . Cargo Convoy Interrupts . | . . . . . Stealth | -11 -10 -10 -10 -9 --------- Run | Yrd Mat Min Exi Min Distress Signals 2 | . 2 . . . Communications Jammed . | . . . . . Distress Signals . | . . . . . Times Spotted 29 | . 4 3 . 22 Peak Tracking Total 15 | . 4 2 . 15 Tactical Retreats 1 | . 1 . . . Traps | -11 -10 -10 -10 -9 ------- Run | Yrd Mat Min Exi Min Traps Triggered . | . . . . . Indirectly . | . . . . . Trap Hack Attempts . | . . . . . Triggered . | . . . . . Disarmed . | . . . . . Reprogrammed . | . . . . . Reused . | . . . . . Traps Extracted . | . . . . . Installed . | . . . . . Triggered . | . . . . . Machines | -11 -10 -10 -10 -9 ---------- Run | Yrd Mat Min Exi Min Machines Disabled . | . . . . . Max in Single Turn . | . . . . . Machines Repaired . | . . . . . Machines Dismantled . | . . . . . Machines Sabotaged . | . . . . . Overloaded Fab Kills . | . . . . . Hacking | -11 -10 -10 -10 -9 --------- Run | Yrd Mat Min Exi Min Machines Accessed 2 | . . . 2 . Terminals . | . . . . . Fabricators . | . . . . . Repair Stations . | . . . . . Recycling Units . | . . . . . Scanalyzers . | . . . . . Garrison Access . | . . . . . Total Hacks 24 | . . . 24 . Successful 24 | . . . 24 . Failed . | . . . . . Catastrophic . | . . . . . Database Lockouts . | . . . . . Manual 1 | . . . 1 . Terminals . | . . . . . Fabricators . | . . . . . Repair Stations . | . . . . . Recycling Units . | . . . . . Scanalyzers . | . . . . . Garrison Access . | . . . . . Terminal Hacks 24 | . . . 24 . Record 23 | . . . 23 . Derelict Proto ID Bank 1 | . . . 1 . Fabricator Hacks . | . . . . . Repair Station Hacks . | . . . . . Recycling Unit Hacks . | . . . . . Scanalyzer . | . . . . . Garrison Access Hacks . | . . . . . Unauthorized Hacks . | . . . . . Terminals . | . . . . . Fabricators . | . . . . . Repair Stations . | . . . . . Recycling Units . | . . . . . Scanalyzers . | . . . . . Garrison Access . | . . . . . Data Cores Recovered . | . . . . . Used . | . . . . . Hacking Detections . | . . . . . Full Trace Events . | . . . . . Feedback Events . | . . . . . Feedback Blocked . | . . . . . Robot Schematics Acquired . | . . . . . Robots Built . | . . . . . Authchips . | . . . . . Time . | . . . . . Total Robot Build Rating . | . . . . . Part Schematics Acquired . | . . . . . Parts Built . | . . . . . Authchips . | . . . . . Time . | . . . . . Total Part Build Rating . | . . . . . Parts Repaired . | . . . . . Time . | . . . . . Parts Recycled . | . . . . . Recycled Matter . | . . . . . Retrieved Matter . | . . . . . Retrieved Components . | . . . . . Parts Scanalyzed . | . . . . . Part Schematics Acquired . | . . . . . Parts Damaged . | . . . . . Bothacking | -11 -10 -10 -10 -9 ------------ Run | Yrd Mat Min Exi Min Used RIF Installer . | . . . . . Robots Hacked . | . . . . . Non-combat . | . . . . . Combat . | . . . . . Robot Hacks Applied . | . . . . . Relay Couplers Released . | . . . . . Fabnet Peak Effective % . | . . . . . Robots Rewired . | . . . . . Allies Hacked . | . . . . . Hacks Repelled . | . . . . . Allies | -11 -10 -10 -10 -9 -------- Run | Yrd Mat Min Exi Min Total Allies . | . . . . . Largest Group . | . . . . . Highest-Rated Group . | . . . . . Highest-Rated Ally . | . . . . . Total Orders . | . . . . . Ally Attacks . | . . . . . Total Damage . | . . . . . Kills . | . . . . . Allies Corrupted . | . . . . . Allies Melted . | . . . . . Intel | -11 -10 -10 -10 -9 ------- Run | Yrd Mat Min Exi Min Robot Analysis Total . | . . . . . Derelict Logs Recovered 1 | . . 1 . . Drone Launches . | . . . . . Drone Recoveries . | . . . . . Exploration | -11 -10 -10 -10 -9 ------------- Run | Yrd Mat Min Exi Min Turns Passed 878 | 72 419 127 178 82 Spaces Moved 968 | 74 212 197 347 138 Core 968 | 74 212 197 347 138 Treads . | . . . . . Legs . | . . . . . Wheels . | . . . . . Hover . | . . . . . Flight . | . . . . . Fastest Speed 50 | 50 50 50 50 50 Average Speed 50 | 50 50 50 50 50 Slowest Speed 50 | 50 50 50 50 50 Overloaded Moves . | . . . . . Propulsion Burnouts . | . . . . . Robots Hopped . | . . . . . Cave-ins Triggered . | . . . . . Exploration Rate (%) 35 | 4 35 20 83 37 Regions Visited 4 Branch Regions 3 Pre-discovered Areas 1 | . . . 1 . Known Exits Taken 3 | . 1 1 1 . Unknown Exits Taken 1 | 1 . . . . Scrap Searched . | . . . . . Spaces Dug . | . . . . . Terrain Destroyed . | . . . . . Melee . | . . . . . Projectile . | . . . . . AOE . | . . . . . Terrain Rammed . | . . . . . Walls Destroyed . | . . . . . Machines Disabled . | . . . . . Actions | -11 -10 -10 -10 -9 --------- Run | Yrd Mat Min Exi Min Total 1330 | 95 524 210 351 150 Wait 315 | . 308 7 . . Move 964 | 73 211 196 346 138 Hop . | . . . . . Pick Up 13 | 8 4 . 1 . Fast Attach . | . . . . . Attach 6 | 4 1 . 1 . Detach . | . . . . . Swap 2 | . . . 1 1 Drop 5 | 3 . . 2 . Fire 14 | 7 . 7 . . Melee . | . . . . . Ram 11 | . . . . 11 Kick . | . . . . . Crush . | . . . . . Escape Stasis . | . . . . . Rewire . | . . . . . Trap . | . . . . . Miscellaneous . | . . . . . Route ------- -11/Scrapyard -10/Materials -10/Mines (discovered 2 exits: *Mat / *Exi) -10/Exiles (discovered 2 exits: *Min x2) -9/Mines History --------- Turn | Location | Event 4 | -11/Scrapyard | Discovered new exit (range 15) 73 | -11/Scrapyard | Entered Materials 306 | -10/Materials | Build established: Mutant 474 | -10/Materials | Discovered new exit (range 13) 480 | -10/Materials | Identified exit to Mines 492 | -10/Materials | Entered Mines 502 | -10/Mines | Learned location of 1 exit from Materials 533 | -10/Mines | Discovered new exit (range 6) 535 | -10/Mines | Identified exit to Materials 586 | -10/Mines | Deemed a non-threat by the Exiles lab entrance 586 | -10/Mines | Discovered new exit (range 5) 588 | -10/Mines | Identified exit to Exiles 619 | -10/Mines | Entered Exiles 627 | -10/Exiles | Discovered new exit (range 15) 634 | -10/Exiles | Identified exit to Mines 644 | -10/Exiles | Met 8R-AWN 652 | -10/Exiles | Met EX-HEX 668 | -10/Exiles | Met EX-BIN 675 | -10/Exiles | Aligned with FarCom system 675 | -10/Exiles | Given EX-Vault access code 687 | -10/Exiles | Opened EX-Vault 693 | -10/Exiles | Found 0b10 Alert Chip 705 | -10/Exiles | Warned to stay clear of 0b10 Research branches 718 | -10/Exiles | Met EX-DEC 721 | -10/Exiles | Learned location of Zion (-6) 741 | -10/Exiles | Visited The Gauntlet 793 | -10/Exiles | Discovered exit to Mines (range 10) 797 | -10/Exiles | Left Exiles lab with 0b10 Alert Chip 797 | -10/Exiles | Entered Mines 837 | -9/Mines | Assembled infested the area 877 | -9/Mines | Core integrity fell below 50% 879 | -9/Mines | Core integrity fell below 20% 879 | -9/Mines | Destroyed by as-57648 with Assembled Rifle Last Messages --------------- T-07 Excavator destroyed. C-30 ARC bursts open, deploying its payload. D-53 Grenadier unfolds itself. Slammed into as-80118. Slammed into as-48516. Slammed into as-16232. Signal Interpreter broken. Destabilizing: Short circuit. Slammed into as-20117. as-02026 destroyed. Slammed into as-09076. Destabilizing: System corrupted (+1). Slammed into as-09076. as-20117 destroyed. Slammed into as-55975. The unstable cave ceiling collapses. Slammed into as-55975. Assault Rifle destroyed. Slammed into as-01306. Core Shielding destroyed. Map ----- +----------------------------------------------------+ | ?????????????????????????????????????? | | ?????????????????????????????????????? | | ?????????????????????????????????????? | | ?????????????????????????????????????? | | ?????????????????????????????????????? | | ?????????????????????????????????????? | | ?????????????????????????????????????? | | ?????????????????????????????????????? | | ???????????????????????????#?????????? | | ???????????????????????????????? ????? | | ?????????????????????????????????????? | | ?????????????????????????????????????? | | ?????????????????????????????????????? | | ?????????????????????????????????????? | | ?????????????????????#????????? ?????? | | ???????????????????????????????#?????? | | ?????????????????????????????????????? | | ?????????????????????????############# | | ?????????????????????????# | | ?????????????????????????# | | ?## ?????????????????????# """ """ "" | | ?# ######?????????????# """ """ "" | | ?# #????????????# """ """ "" | | ?# * [ ##??????????# | | ?# %=%! ##########?# """ """ "" | | ?# = * @aa #?# """ """ "" | | ??# a% a a a #?# """ """ "" | | ??# aa######a #?# | | ??# a #####?# ### | | ??# #### ## ## | | ??# #??# ############## | | ??## #???## ##????????????# | | ???# ## ?????## #?????????????? | | ???#??### ??????## ##?????????????# | | ????????# ????????### #??????######??? | | ???????? ??????????# ##### # #?#? | | ????????#? ???#?????# % #### | | ????????????????????### #### ## | | ??????????????????????# #?#### #!## | | ??????????????????????# ### | | ??????????????????????# ! | | ??????????????????????# =%* | | ??????????????????????#####= | | ??????????????????????????## | | ???????????????????????????### | | ?????????????????????????????## | | ??????????????????????????????#### | | ?????????????????????????????????## | | ??????????????????????????????????# | | ??????????????????????????????????# | +----------------------------------------------------+ Best States ------------- Heat Dissipation 25 Energy Generation 10 Energy Capacity 250 Matter Stores 300 Matter Capacity 300 Sight Range 16 Terrain Scan Range 16 Terrain Scan Density 10 Core Shielding 20 Evasion (%) 50 Item Schematics ----------------- None Robot Schematics ------------------ None Fabricated ------------ Nothing Alien Tech Used ----------------- None Achievements -------------- None Challenges ------------ None Game ------ Seed SignalHeartReplicator Manual? 0 Play Time 00:10:35 Cumulative 36.1 hours Start 2024.04.26 @ 22:54:36 End 2024.04.27 @ 16:58:18 Sessions 3 Manual Loads 0 Difficulty Rogue Special Mode None Game No. 56 Rogue 55 Adventurer 1 Explorer 0 Win Type - Total 0 Types 0/0/0/0/0/0/0/0/0 Lore% 34 Gallery% 38 Achievement% 31 Wizard Run 0 Options --------- Layout 1 ASCII 0 Keyboard 0 Movement Mouse Keybinds 0 Fullscreen 1 Font 24/Smallcaps Map View 50x40 Zoom Use 0% Tactical HUD 0 Map Filters NONE Filters NONE Steam 1 RUN: ff19c932-a0d3-4700-8545-30807591aedb